bitfinex/quotes_ETHUSD_20250903
["timestamp","ask_amount","ask_price","bid_price","bid_amount"]
[1756872380685,20.00459962,4341.3,4341.1,0.004]
[1756872380894,6.09551055,4341.2,4341.1,0.004]
[1756872381102,6.57638844,4341.2,4341.1,0.004]
[1756872381265,7.77008844,4341.2,4341.1,0.004]
[1756872382352,11.62208844,4341.2,4341.1,0.004]
[1756872385661,11.79286207,4341.2,4341.1,0.004]
[1756872392397,3.09566974,4340.9,4340.8,0.024]
[1756872392576,3.09593512,4340.4,4340.3,0.004]
[1756872392777,17.83796423,4340.4,4340.3,0.004]
[1756872393104,18.86076423,4340.4,4340.3,0.004]
[1756872396696,18.40966423,4340.4,4340.3,0.004]
[1756872397095,18.40866423,4340.4,4340.3,0.004]
[1756872397399,15.48964212,4340.4,4340.3,0.004]
[1756872397601,19.34064212,4340.4,4340.3,0.004]
[1756872398007,25.29327123,4340.4,4340.3,0.004]
[1756872398297,32.45327123,4340.4,4340.3,0.004]
[1756872398867,26.50064212,4340.4,4340.3,0.004]
[1756872399702,26.04954212,4340.4,4340.3,0.004]
[1756872399906,22.49482911,4340.4,4340.3,0.0879]
[1756872400506,18.64382911,4340.4,4340.3,0.0879]
[1756872400810,22.49482911,4340.4,4340.3,0.0879]
[1756872401174,21.70282911,4340.4,4340.3,0.0879]
[1756872402601,17.85182911,4340.4,4340.3,0.0879]
[1756872402805,21.70282911,4340.4,4340.3,0.5579]
[1756872403006,18.70382911,4340.4,4340.3,0.5579]
[1756872403182,21.70382911,4340.4,4340.3,0.5579]
[1756872404275,17.85182911,4340.4,4340.3,0.5579]
[1756872404476,21.70382911,4340.4,4340.3,0.5579]
[1756872404920,21.70382911,4340.4,4340.3,0.0879]
[1756872405569,22.01722911,4340.4,4340.3,0.004]
[1756872405777,21.70382911,4340.4,4340.3,0.004]
[1756872406286,21.70382911,4340.4,4340.3,0.0879]
[1756872407201,24.00776423,4340.4,4340.3,0.004]
[1756872407395,25.22876423,4340.4,4340.3,0.004]
[1756872408421,21.70382911,4340.4,4340.3,0.004]
[1756872408574,15.30853512,4340.4,4340.3,0.004]
[1756872408777,26.01976423,4340.4,4340.3,0.004]
[1756872409219,31.97239334,4340.4,4340.3,0.004]
[1756872409415,26.01976423,4340.4,4340.3,0.004]
[1756872409716,31.97239334,4340.4,4340.3,0.004]
[1756872411140,26.01976423,4340.4,4340.3,0.004]
[1756872411495,22.16876423,4340.4,4340.3,0.004]
[1756872411742,26.02076423,4340.4,4340.3,0.004]
[1756872412245,24.79876423,4340.4,4340.3,0.004]
[1756872412938,24.79876423,4340.4,4340.3,0.0879]
[1756872413433,25.11216423,4340.4,4340.3,0.004]
[1756872413740,26.01976423,4340.4,4340.3,0.004]
[1756872414890,31.97239334,4340.4,4340.3,0.004]
[1756872415108,26.01976423,4340.4,4340.3,0.004]
[1756872415709,31.97239334,4340.4,4340.3,0.004]
[1756872416126,26.01976423,4340.4,4340.3,0.004]
[1756872417766,31.97239334,4340.4,4340.3,0.004]
[1756872417967,26.02076423,4340.4,4340.3,0.004]
[1756872418124,31.97339334,4340.4,4340.3,0.004]
[1756872419650,26.02076423,4340.4,4340.3,0.004]
[1756872421446,27.34596592,4340.4,4340.3,0.004]
[1756872424349,22.58636592,4340.4,4340.3,0.004]
[1756872424544,23.02706592,4340.4,4340.3,0.004]
[1756872424850,26.87906592,4340.4,4340.3,0.004]
[1756872427954,27.34376592,4340.4,4340.3,0.004]
[1756872429124,26.87906592,4340.4,4340.3,0.004]
[1756872429550,27.34376592,4340.4,4340.3,0.004]
[1756872430377,27.34376592,4340.4,4339.8,0.024]
[1756872430378,0.792,4340.2,4339.8,0.024]
[1756872430659,13.37403135,4339.9,4339.8,0.024]
[1756872430833,17.53393135,4339.9,4339.8,0.024]
[1756872431035,17.53393135,4339.9,4338.8,0.02]
[1756872431036,2.30451916,4339.3,4338.8,0.02]
[1756872431346,18.85134996,4339.3,4338.8,0.02]
[1756872431655,20.53794996,4339.3,4338.8,0.02]
[1756872432629,20.07324996,4339.3,4338.8,0.02]
[1756872433458,20.18622849,4339.3,4338.8,0.02]
[1756872434257,16.33422849,4339.3,4338.8,0.02]
[1756872434439,20.18822849,4339.3,4338.8,0.02]
[1756872436444,20.18822849,4339.3,4339.2,0.0879]
[1756872436445,12.3761308,4339.3,4339.2,0.0879]
[1756872436762,13.2301308,4339.3,4339.2,0.5612]
[1756872437135,5.0983,4339.3,4339.2,0.5612]
[1756872437332,5.9523,4339.3,4339.2,0.6136]
[1756872438338,2.0983,4339.3,4339.2,0.6136]
[1756872438659,1.625,4339.3,4339.2,3.21000008]
[1756872438867,1.625,4340.2,4339.7,2.30427912]
[1756872439033,1.625,4340.2,4339.8,0.5257]
[1756872439232,1.625,4340.2,4340.1,2.38799437]
[1756872439434,5.481,4340.2,4340.1,2.86129437]
[1756872439636,5.481,4340.2,4340.1,0.5572]
[1756872439960,5.481,4340.2,4340.1,0.0839]
[1756872440162,13.37620231,4340.2,4339.2,0.4773]
[1756872440337,3.0,4339.7,4339.2,0.4773]
[1756872440665,0.1152,4339.3,4339.2,0.004]
[1756872440859,3.9722,4339.3,4339.2,0.4773]
[1756872441062,3.9722,4339.3,4339.2,0.5612]
[1756872441761,3.9722,4339.3,4339.2,0.0879]
[1756872442061,3.9722,4339.3,4339.2,0.5612]
[1756872442264,3.9722,4339.3,4339.2,0.0879]
[1756872444138,14.2500308,4339.3,4339.2,0.004]
[1756872444439,15.62763415,4339.3,4339.2,0.004]
[1756872444661,18.72415331,4339.3,4339.2,0.004]
[1756872444861,19.18885331,4339.3,4339.2,0.004]
[1756872445034,19.18885331,4339.3,4337.9,0.4733]
[1756872445035,2.30473336,4338.9,4337.9,2.30521652]
[1756872445368,3.0,4338.7,4337.9,2.30526291]
[1756872445541,0.1152,4338.4,4337.9,2.30526291]
[1756872445734,3.857,4338.3,4337.9,2.30526291]
[1756872446139,3.857,4338.3,4338.0,2.30520558]
[1756872446553,3.857,4338.3,4337.9,2.3052433]
[1756872446957,3.857,4338.3,4337.8,0.1152]
[1756872446958,3.857,4338.3,4338.0,2.30519732]
[1756872447348,3.857,4338.3,4338.1,2.30515644]
[1756872448771,3.856,4338.2,4338.1,2.30515644]
[1756872449264,0.1152,4338.4,4338.3,2.30505036]
[1756872449473,3.856,4338.4,4338.3,2.30905036]
[1756872449770,3.856,4338.4,4338.3,0.004]
[1756872451865,3.856,4338.4,4338.3,2.30905036]
[1756872452065,0.1152,4338.5,4338.3,2.30905036]
[1756872452368,4.3135,4338.4,4338.3,0.004]
[1756872452671,3.857,4338.4,4338.3,0.004]
[1756872453348,0.1152,4338.5,4338.4,2.30499723]
[1756872453543,3.9712,4338.5,4338.4,2.30499723]
[1756872458179,3.9712,4338.5,4338.3,0.004]
[1756872458382,0.9218,4338.4,4338.3,0.004]
[1756872458881,1.208,4338.4,4338.3,0.004]
[1756872459069,1.88842,4338.4,4338.3,0.004]
[1756872459379,1.208,4338.4,4338.3,0.004]
[1756872466362,4.208,4338.4,4338.3,0.004]
[1756872466665,6.51299723,4338.4,4338.3,0.004]
[1756872467189,6.51399723,4338.4,4338.3,0.004]
[1756872471210,7.30599723,4338.4,4338.3,0.004]
[1756872471368,8.66739014,4338.4,4338.3,0.004]
[1756872472895,12.52039014,4338.4,4338.3,0.004]
[1756872473096,8.66739014,4338.4,4338.3,0.004]
[1756872473293,12.52039014,4338.4,4338.3,0.004]
[1756872476002,0.792,4338.3,4337.8,0.024]
[1756872476298,0.792,4338.3,4337.3,0.004]
[1756872476299,0.792,4337.5,4337.3,0.004]
[1756872476607,2.30542235,4337.6,4337.3,0.004]
[1756872476608,19.14055945,4337.4,4337.3,0.004]
[1756872476804,20.06235945,4337.4,4337.3,0.004]
[1756872476989,21.42375236,4337.4,4337.3,0.004]
[1756872478487,18.19642371,4337.4,4337.3,0.004]
[1756872478691,17.91022371,4337.4,4337.3,0.004]
[1756872478882,12.6948308,4337.4,4337.3,0.004]
[1756872479080,20.06135945,4337.4,4337.3,0.004]
[1756872480708,19.77515945,4337.4,4337.3,0.004]
[1756872480894,18.85335945,4337.4,4337.3,0.004]
[1756872481094,19.58435945,4337.4,4337.3,0.004]
[1756872481286,20.06945945,4337.4,4337.3,0.004]
[1756872481489,18.75729486,4337.4,4337.3,0.004]
[1756872481791,24.72296107,4337.4,4337.3,0.004]
[1756872482196,18.75729486,4337.4,4337.3,0.004]
[1756872486004,15.35186621,4337.4,4337.3,0.0425]
[1756872486317,20.41792502,4337.4,4337.3,0.004]
[1756872487325,33.54359123,4337.4,4337.3,0.004]
[1756872488419,12.0634075,4337.0,4336.8,0.024]
[1756872488617,15.9254075,4337.0,4336.8,0.024]
[1756872488821,17.57584176,4337.0,4336.8,0.024]
[1756872489034,13.71384176,4337.0,4336.8,0.024]
[1756872489223,17.57584176,4337.0,4336.8,0.024]
[1756872489523,17.66830775,4337.0,4336.8,0.024]
[1756872492603,12.58370775,4337.0,4336.8,0.024]
[1756872492807,16.57490775,4337.0,4336.8,0.024]
[1756872493012,17.66730775,4337.0,4336.8,0.024]
[1756872493815,13.37570775,4337.0,4336.8,0.024]
[1756872494018,12.59020775,4337.0,4336.9,0.0425]
[1756872494225,16.45120775,4337.0,4336.9,0.004]
[1756872494803,10.48554154,4337.0,4336.9,0.0425]
[1756872495025,16.45120775,4337.0,4336.9,0.0425]
[1756872495405,16.45120775,4337.0,4336.9,0.004]
[1756872496554,17.66730775,4337.0,4336.9,0.004]
[1756872496737,16.45120775,4337.0,4336.9,0.004]
[1756872497629,17.18220775,4337.0,4336.9,0.004]
[1756872497833,17.66730775,4337.0,4336.9,0.004]
[1756872498413,17.78250775,4337.0,4336.9,0.004]
[1756872498613,13.92150775,4337.0,4336.9,0.004]
[1756872498808,17.78150775,4337.0,4336.9,0.004]
[1756872502336,11.81584154,4337.0,4336.9,0.004]
[1756872502535,7.95584154,4337.0,4336.9,0.004]
[1756872502908,11.81684154,4337.0,4336.9,0.004]
[1756872505346,19.21999196,4337.0,4336.9,0.004]
[1756872506651,12.30661109,4336.9,4336.8,0.024]
[1756872506952,3.09800714,4336.5,4336.4,0.004]
[1756872507122,17.85207335,4336.5,4336.4,0.004]
[1756872507446,18.88297335,4336.5,4336.4,0.004]
[1756872507849,18.97544105,4336.5,4336.4,0.004]
[1756872508148,19.40977531,4336.5,4336.4,0.004]
[1756872508940,26.56977531,4336.5,4336.4,0.004]
[1756872510031,32.53544152,4336.5,4336.4,0.004]
[1756872510230,6.09832625,4335.9,4335.8,0.02]
[1756872510421,16.88364983,4335.9,4335.8,0.02]
[1756872510618,18.10434983,4335.9,4335.8,0.02]
[1756872512821,24.07001604,4335.9,4335.8,0.02]
[1756872515871,19.77171604,4335.9,4335.8,0.02]
[1756872516037,17.66804983,4335.9,4335.8,0.02]
[1756872516235,18.10234983,4335.9,4335.8,0.02]
[1756872516630,24.06801604,4335.9,4335.8,0.02]
[1756872516830,17.31594983,4335.9,4335.8,0.02]
[1756872517143,24.06901604,4335.9,4335.8,0.02]
[1756872518726,23.63471604,4335.9,4335.8,0.02]
[1756872518927,24.06901604,4335.9,4335.8,0.02]
[1756872520437,16.88164983,4335.9,4335.8,0.024]
[1756872520975,13.01964983,4335.9,4335.8,0.024]
[1756872521177,12.25019246,4335.9,4335.8,0.0625]
[1756872521376,16.04219246,4335.9,4335.8,0.0625]
[1756872522547,15.92699246,4335.9,4335.8,0.0625]
[1756872523850,9.17032625,4335.9,4335.8,0.0625]
[1756872524052,15.13599246,4335.9,4335.8,0.0625]
[1756872525076,12.82966621,4335.9,4335.8,0.0625]
[1756872525380,15.13599246,4335.9,4335.8,0.0625]
[1756872525939,8.96566621,4335.9,4335.8,0.0625]
[1756872526444,15.13499246,4335.9,4335.8,0.0625]
[1756872530295,15.13499246,4335.9,4335.8,0.024]
[1756872531276,24.65778883,4335.9,4335.8,0.024]
[1756872532578,24.77298883,4335.9,4335.8,0.024]
[1756872536863,20.47568883,4335.9,4335.8,0.024]
[1756872537201,24.77298883,4335.9,4335.8,0.024]
[1756872537589,31.93298883,4335.9,4335.8,0.024]
[1756872540799,31.95758883,4335.9,4335.8,0.024]
[1756872541577,28.09458883,4335.9,4335.8,0.024]
[1756872541782,31.95758883,4335.9,4335.8,0.024]
[1756872543498,27.32002584,4335.9,4335.8,0.024]
[1756872544322,27.83189026,4335.9,4335.8,0.024]
[1756872544487,27.58873984,4335.9,4335.8,0.024]
[1756872545687,23.45702584,4335.9,4335.8,0.024]
[1756872545888,27.31902584,4335.9,4335.8,0.024]
[1756872546709,26.07372584,4335.9,4335.8,0.0625]
[1756872546912,27.30452584,4335.9,4335.8,0.024]
[1756872548416,26.07372584,4335.9,4335.8,0.024]
[1756872548918,26.83442584,4335.9,4335.8,0.024]
[1756872549119,27.30452584,4335.9,4335.8,0.024]
[1756872549731,23.44252584,4335.9,4335.8,0.024]
[1756872549930,27.30352584,4335.9,4335.8,0.024]
[1756872553536,13.39236167,4335.4,4335.3,0.004]
[1756872553701,18.87936167,4335.4,4335.3,0.004]
[1756872553900,20.22536167,4335.4,4335.3,0.004]
[1756872554101,27.38536167,4335.4,4335.3,0.004]
[1756872561535,3.09875186,4335.1,4335.0,7.999]
[1756872561716,10.07795186,4335.1,4335.0,7.999]
[1756872561923,6.21395186,4335.1,4335.0,8.0375]
[1756872562129,10.07895186,4335.1,4335.0,8.0375]
[1756872562320,10.07895186,4335.1,4335.0,7.999]
[1756872562556,11.66595366,4335.1,4335.0,7.999]
[1756872562860,12.43785366,4335.1,4335.0,7.999]
[1756872563432,12.13605366,4335.1,4335.0,7.999]
[1756872563855,11.66595366,4335.1,4335.0,7.999]
[1756872564217,18.82595366,4335.1,4335.0,7.999]
[1756872564422,18.99724475,4335.1,4335.0,7.999]
[1756872564724,19.46734475,4335.1,4335.0,7.999]
[1756872565131,19.76914475,4335.1,4335.0,7.999]
[1756872569853,15.14344475,4335.1,4335.0,7.999]
[1756872570057,18.53534475,4335.1,4335.0,8.0375]
[1756872570568,18.53534475,4335.1,4335.0,7.999]
[1756872570773,18.53534475,4335.1,4335.0,8.0375]
[1756872571268,14.67334475,4335.1,4335.0,8.0375]
[1756872571432,25.82911418,4335.1,4335.0,8.0375]
[1756872572043,25.82911418,4335.1,4335.0,8.0415]
[1756872574469,25.82911418,4335.1,4335.0,8.003]
[1756872575167,25.82911418,4335.1,4335.0,8.0415]
[1756872576273,25.82711418,4335.1,4335.0,8.0415]
[1756872576479,13.2757194,4335.1,4335.0,8.0415]
[1756872576636,17.1357194,4335.1,4335.0,8.0415]
[1756872576837,24.42948883,4335.1,4335.0,8.0415]
[1756872579758,24.42948883,4335.1,4335.0,8.003]
[1756872580071,24.42948883,4335.1,4335.0,8.0415]
[1756872580565,25.22148883,4335.1,4335.0,8.003]
[1756872581069,25.22148883,4335.1,4335.0,8.0415]
[1756872582256,25.22148883,4335.1,4335.0,8.003]
[1756872583354,25.22148883,4335.1,4335.0,8.0415]
[1756872585285,25.22148883,4335.1,4335.0,8.003]
[1756872585872,26.41478883,4335.1,4335.0,8.003]
[1756872589256,26.58391453,4335.1,4335.0,8.003]
[1756872590553,26.58391453,4335.1,4335.0,2.14143627]
[1756872590751,2.30685828,4334.9,4334.8,1e-08]
[1756872590948,2.30685828,4334.9,4333.8,0.02]
[1756872590949,3.09939057,4333.9,4333.8,0.02]
[1756872591168,26.69303029,4333.9,4333.8,0.02]
[1756872591681,27.43473029,4333.9,4333.8,0.02]
[1756872591986,27.43473029,4333.9,4332.8,0.02]
[1756872591987,5.64215882,4333.8,4332.8,0.02]
[1756872592159,12.60169253,4332.9,4332.8,0.02]
[1756872592352,20.99600136,4332.9,4332.8,0.02]
[1756872592690,21.89960136,4332.9,4332.8,0.02]
[1756872593783,17.26990136,4332.9,4332.8,0.02]
[1756872593947,21.15790136,4332.9,4332.8,0.02]
[1756872594152,21.44760136,4332.9,4332.8,0.02]
[1756872594389,21.89960136,4332.9,4332.8,0.02]
[1756872595052,16.81830136,4332.9,4332.8,0.02]
[1756872595248,20.87705548,4332.9,4332.8,0.02]
[1756872595484,22.07035548,4332.9,4332.8,0.02]
[1756872598579,21.32805548,4332.9,4332.8,0.02]
[1756872598981,21.77965548,4332.9,4332.8,0.02]
[1756872599701,21.61775548,4332.9,4332.8,0.02]
[1756872600008,20.87505548,4332.9,4332.8,0.02]
[1756872600169,18.51203238,4332.9,4331.8,0.02]
[1756872600364,2.30887319,4331.2,4330.8,0.02]
[1756872600594,3.0,4331.0,4330.8,0.02]
[1756872600800,8.92076943,4331.3,4330.8,0.02]
[1756872600801,9.19698889,4330.9,4330.8,0.02]
[1756872600968,14.56220913,4330.9,4330.8,0.02]
[1756872601164,14.56220913,4330.9,4330.8,0.0585]
[1756872601885,14.67740913,4330.9,4330.8,0.0585]
[1756872603486,13.36682606,4330.9,4330.8,0.0585]
[1756872604310,3.1152,4330.9,4330.8,0.1225]
[1756872604505,7.0022,4330.9,4330.8,0.1225]
[1756872604696,7.0022,4330.9,4330.8,0.0585]
[1756872605216,1.627,4331.3,4330.8,0.1225]
[1756872605533,1.7452,4331.2,4330.9,2.30898889]
[1756872605711,1.7452,4331.2,4331.1,2.34738227]
[1756872605875,3.1152,4331.2,4331.1,2.41138227]
[1756872606699,3.1152,4331.2,4331.1,0.1025]
[1756872607625,3.1152,4331.2,4331.1,0.0625]
[1756872607829,3.1152,4331.2,4331.1,0.0385]
[1756872611222,3.1152,4331.2,4331.1,0.1025]
[1756872611632,0.1152,4331.2,4331.1,0.0385]
[1756872611802,3.0,4331.1,4330.8,2.3290145]
[1756872612009,3.888,4331.0,4330.8,2.3290145]
[1756872612204,3.888,4331.0,4330.9,0.0385]
[1756872612533,3.888,4331.0,4330.9,2.34748889]
[1756872613532,3.888,4331.0,4330.8,0.02]
[1756872613827,3.1152,4330.9,4330.8,0.02]
[1756872614233,3.1152,4330.9,4330.8,0.0585]
[1756872616423,8.14862057,4330.9,4330.8,0.02]
[1756872618547,7.79234753,4330.9,4330.8,0.02]
[1756872618951,8.58434753,4330.9,4330.8,0.02]
[1756872619558,8.94053998,4330.9,4330.8,0.02]
[1756872621830,2.30952215,4329.9,4329.8,0.02]
[1756872622170,12.88218636,4329.9,4329.8,0.02]
[1756872622469,16.36490851,4329.9,4329.8,0.02]
[1756872622966,12.88218636,4329.9,4329.8,0.02]
[1756872623465,12.88218636,4329.9,4329.8,0.0585]
[1756872623466,8.98318636,4329.9,4329.8,0.0585]
[1756872623766,12.88218636,4329.9,4329.8,0.0585]
[1756872623930,6.899,4329.9,4329.8,0.0585]
[1756872624936,6.899,4329.9,4329.8,0.02]
[1756872625282,12.88218636,4329.9,4329.8,0.0585]
[1756872626137,6.899,4329.9,4329.8,0.0585]
[1756872626532,7.0142,4329.9,4329.8,0.0585]
[1756872627741,12.99738636,4329.9,4329.8,0.0585]
[1756872627938,12.99738636,4329.9,4329.8,0.02]
[1756872628283,13.43368636,4329.9,4329.8,0.02]
[1756872629358,16.50640851,4329.9,4329.8,0.02]
[1756872631538,14.22628636,4329.9,4329.8,0.02]
[1756872632048,16.53580851,4329.9,4329.8,0.02]
[1756872639140,24.48780851,4329.9,4329.8,0.02]
[1756872639344,24.84400096,4329.9,4329.8,0.02]
[1756872642550,24.48780851,4329.9,4329.8,0.02]
[1756872643694,17.32780851,4329.9,4329.8,0.02]
[1756872643993,17.32180851,4329.9,4329.8,0.02]
[1756872644872,17.67800096,4329.9,4329.8,0.024]
[1756872646061,13.78500096,4329.9,4329.8,0.024]
[1756872646358,17.67700096,4329.9,4329.8,0.024]
[1756872648120,13.78500096,4329.9,4329.8,0.024]
[1756872648269,17.67700096,4329.9,4329.8,0.024]
[1756872650702,0.792,4329.6,4328.8,0.02]
[1756872650905,9.09838636,4328.9,4328.8,0.02]
[1756872651084,14.61538636,4328.9,4328.8,0.02]
[1756872651284,14.61538636,4328.9,4328.8,0.0585]
[1756872652606,16.92544203,4328.9,4328.8,0.0585]
[1756872654209,16.92544203,4328.9,4328.8,0.02]
[1756872654210,22.19746517,4328.9,4328.8,0.02]
[1756872654394,14.61338636,4328.9,4328.8,0.0585]
[1756872654597,16.92344203,4328.9,4328.8,0.0585]
[1756872655112,16.92344203,4328.9,4328.8,0.02]
[1756872655285,18.16614203,4328.9,4328.8,0.02]
[1756872656508,14.27914203,4328.9,4328.8,0.02]
[1756872656716,18.16614203,4328.9,4328.8,0.02]
[1756872657782,18.52233448,4328.9,4328.8,0.02]
[1756872658912,24.50552084,4328.9,4328.8,0.02]
[1756872660082,25.29752084,4328.9,4328.8,0.02]
[1756872660292,16.92544203,4328.9,4328.8,0.0585]
[1756872660904,16.92544203,4328.9,4328.8,0.02]
[1756872661120,24.49652084,4328.9,4328.8,0.02]
[1756872662302,25.28852084,4328.9,4328.8,0.02]
[1756872662710,25.28852084,4328.9,4328.8,1e-08]
[1756872662896,4.14819245,4328.8,4327.8,0.02]
[1756872663099,11.29377579,4327.9,4327.8,0.02]
[1756872663298,17.17096824,4327.9,4327.8,0.02]
[1756872663486,4.629,4327.9,4327.8,0.0585]
[1756872663694,4.629,4327.9,4327.8,0.1225]
[1756872663903,8.521,4327.9,4327.8,0.1225]
[1756872664396,8.521,4327.9,4327.8,0.0825]
[1756872664590,8.521,4327.9,4327.8,0.0585]
[1756872667520,4.629,4327.9,4327.8,0.0585]
[1756872667722,8.521,4327.9,4327.8,0.0585]
[1756872670629,8.518,4327.9,4327.8,0.0585]
[1756872672491,18.14547105,4327.9,4327.8,0.02]
[1756872672690,6.93958943,4327.9,4327.8,0.02]
[1756872672908,8.6322,4327.9,4327.8,0.0585]
[1756872673111,4.7442,4327.9,4327.8,0.0585]
[1756872673310,10.94678943,4327.9,4327.8,0.0585]
[1756872673592,8.6362,4327.9,4327.8,0.0585]
[1756872673825,8.6382,4327.9,4327.8,0.0585]
[1756872674195,4.7442,4327.9,4327.8,0.0585]
[1756872674394,4.7442,4327.9,4327.8,0.02]
[1756872674395,8.6402,4327.9,4327.8,0.02]
[1756872674596,8.525,4327.9,4327.8,0.0585]
[1756872674794,8.6402,4327.9,4327.8,0.02]
[1756872675132,8.6402,4327.9,4327.8,0.0585]
[1756872677122,4.7442,4327.9,4327.8,0.0585]
[1756872677292,0.09262807,4328.0,4327.9,2.31058943]
[1756872677492,0.09262807,4328.0,4327.9,2.89928265]
[1756872677740,3.896,4328.3,4328.1,2.31045149]
[1756872677924,3.896,4328.3,4328.2,2.34892927]
[1756872678238,3.896,4328.3,4328.2,0.0385]
[1756872679235,12.80077407,4328.3,4327.8,0.02]
[1756872679438,11.85907407,4328.3,4327.8,0.02]
[1756872679720,0.9417,4328.2,4327.8,0.02]
[1756872679899,3.898,4328.1,4327.8,0.02]
[1756872680093,4.8397,4328.1,4327.8,0.02]
[1756872680426,0.9417,4328.0,4327.8,0.02]
[1756872680747,3.898,4327.9,4327.8,0.02]
[1756872681216,4.6365,4327.9,4327.8,0.02]
[1756872681417,12.44658162,4327.9,4327.8,0.02]
[1756872681627,1.629,4328.0,4327.8,0.0585]
[1756872681920,3.899,4327.9,4327.8,0.0585]
[1756872682331,1.629,4328.0,4327.8,0.02]
[1756872682531,3.899,4327.9,4327.8,0.02]
[1756872682851,5.1307,4327.9,4327.8,0.02]
[1756872685716,1.72163066,4328.0,4327.8,0.02]
[1756872685917,3.899,4327.9,4327.8,0.0585]
[1756872686758,3.899,4327.9,4327.8,2.36914282]
[1756872686955,1.629,4328.0,4327.8,0.0585]
[1756872687157,1.629,4328.0,4327.8,2.36913638]
[1756872687158,3.899,4327.9,4327.8,2.36913638]
[1756872687457,3.899,4327.9,4327.8,0.0585]
[1756872687656,3.899,4327.9,4327.8,2.36914282]
[1756872687817,3.899,4327.9,4327.8,0.0585]
[1756872688819,3.899,4327.9,4327.8,2.36914282]
[1756872689136,1.629,4328.0,4327.8,2.36914282]
[1756872689137,1.629,4328.0,4327.9,2.31058943]
[1756872689333,5.528,4328.0,4327.9,2.31058943]
[1756872689545,5.528,4328.0,4327.9,2.34908943]
[1756872689752,5.528,4328.0,4327.9,0.0385]
[1756872689917,5.528,4328.0,4327.9,2.34908943]
[1756872690118,5.528,4328.0,4327.9,2.66181837]
[1756872690119,5.527,4328.0,4327.9,2.66181837]
[1756872690437,0.001,4328.6,4328.4,2.31027956]
[1756872690614,3.898,4328.5,4328.3,2.31037562]
[1756872690820,3.898,4328.5,4328.4,2.34882252]
[1756872691018,3.898,4328.5,4328.3,2.3103709]
[1756872691329,3.898,4328.5,4328.4,2.34882252]
[1756872692125,3.898,4328.5,4328.4,0.0385]
[1756872692322,3.898,4328.5,4328.1,0.1152]
[1756872692546,0.001,4328.6,4328.4,0.0385]
[1756872692735,3.897,4328.5,4328.4,0.0385]
[1756872692934,3.897,4328.5,4328.4,2.34881434]
[1756872695167,3.897,4328.5,4328.4,0.0385]
[1756872695327,4.6298,4328.5,4328.1,0.1152]
[1756872695533,0.4361,4328.4,4328.1,0.1152]
[1756872695840,3.895,4328.3,4328.1,0.1152]
[1756872696355,3.895,4328.3,4327.8,0.02]
[1756872696356,1.2244,4328.2,4327.8,0.02]
[1756872696670,7.31688162,4328.0,4327.8,0.02]
[1756872696855,4.0102,4327.9,4327.8,0.02]
[1756872697026,5.2346,4327.9,4327.8,0.02]
[1756872698228,1.3396,4327.9,4327.8,0.02]
[1756872698529,0.1152,4327.9,4327.8,0.02]
[1756872698733,4.0112,4327.9,4327.8,0.02]
[1756872698933,4.3079,4327.9,4327.8,0.02]
[1756872699160,5.2356,4327.9,4327.8,0.02]
[1756872699684,8.2356,4327.9,4327.8,0.02]
[1756872704148,3.848,4327.9,4327.8,0.02]
[1756872704349,3.1152,4327.9,4327.8,0.02]
[1756872704590,3.1152,4327.9,4327.8,0.0585]
[1756872704773,7.0092,4327.9,4327.8,0.0585]
[1756872705172,3.1152,4327.9,4327.8,2.36914282]
[1756872705369,0.1152,4327.9,4327.8,2.83974725]
[1756872705689,1.629,4328.1,4328.0,2.31053604]
[1756872705854,8.523,4328.1,4328.0,2.34903604]
[1756872706304,9.3113,4328.1,4327.8,2.33064213]
[1756872706497,0.4361,4328.0,4327.8,2.33064213]
[1756872706704,3.894,4327.9,4327.8,2.33064213]
[1756872707111,3.894,4327.9,4327.8,2.36914213]
[1756872709423,1.629,4328.1,4328.0,2.31053604]
[1756872709577,0.4916,4329.0,4328.5,2.31026914]
[1756872709578,1.629,4328.8,4328.5,2.31026914]
[1756872709776,3.893,4328.6,4328.0,0.1537]
[1756872709972,0.001,4328.6,4328.0,0.1537]
[1756872710207,0.001,4328.6,4328.5,2.31026914]
[1756872710424,3.894,4328.6,4328.5,2.31026914]
[1756872710578,3.894,4328.6,4328.5,2.34876914]
[1756872710779,0.001,4328.6,4328.5,2.82620076]
[1756872711004,3.894,4328.6,4328.5,2.82620076]
[1756872711210,3.894,4328.6,4328.5,2.31026914]
[1756872711390,3.894,4328.6,4328.5,2.34876914]
[1756872711909,3.894,4328.6,4328.5,2.31026914]
[1756872712138,4.3301,4328.6,4328.4,2.31031849]
[1756872712455,4.6268,4328.6,4328.4,2.31031849]
[1756872712751,4.6268,4328.6,4328.5,2.31026914]
[1756872713056,3.894,4328.6,4328.5,2.31026914]
[1756872713351,3.894,4328.6,4328.5,2.34876914]
[1756872713559,3.894,4328.6,4328.5,2.78368705]
[1756872714141,3.894,4328.6,4328.5,0.43491791]
[1756872714456,3.894,4328.6,4328.5,2.31026914]
[1756872714673,4.6268,4328.6,4328.5,2.31026914]
[1756872714875,3.894,4328.6,4328.5,2.31026914]
[1756872715981,4.6823,4328.6,4328.1,0.1152]
[1756872716140,0.9277,4328.5,4328.1,0.1152]
[1756872716340,3.892,4328.4,4328.1,2.42566872]
[1756872716676,0.001,4328.6,4328.2,2.31042927]
[1756872716834,0.001,4328.6,4328.5,2.31026914]